[Event "Netanya Open 2019"]
[Site "Netanya"]
[Date "2019.06.30"]
[Round "7.8"]
[White "Gorodetzky, David"]
[Black "Rechlis, Gad"]
[Result "1-0"]
[ECO "E73"]
[WhiteElo "2461"]
[BlackElo "2506"]
[Annotator "ChessBase"]
[PlyCount "91"]
[EventDate "2019.06.23"]
[EventType "swiss"]
[EventCountry "ISR"]
[SourceTitle "playchess.com"]
[Source "ChessBase"]
[SourceQuality "1"]
[TimeControl "40/5400+30:1800+30"]

1. d4 {[%emt 0:00:00]} Nf6 {[%emt 0:16:52]} 2. c4 {[%emt 0:00:00]} c5 {[%emt 0:05:25]} 3. d5 {[%emt 0:00:26]} g6 {[%emt 0:00:40]} 4. Nc3 {[%emt 0:02:24]} Bg7 {[%emt 0:00:05]} 5. e4 {[%emt 0:01:49]} O-O {[%emt 0:00:06]} 6. Be2 {[%emt 0:15:53]} d6 {[%emt 0:20:15]} 7. Be3 {[%emt 0:03:12]} b5 {[%emt 0:03:06]} 8. cxb5 {[%emt 0:02:02]} a6 {[%emt 0:00:08]} 9. bxa6 {[%emt 0:10:46]} Qa5 {[%emt 0:01:08]} 10. Bd2 {[%emt 0:08:34]} Bxa6 {[%emt 0:05:28]} 11. Nf3 {[%emt 0:01:31]} Qb4 {[%emt 0:00:51]} 12. Bxa6 {[%emt 0:20:44]} Nxa6 {[%emt 0:00:20]} 13. Qe2 {[%emt 0:02:05]} Qxb2 {[%emt 0:01:03]} 14. O-O {[%emt 0:01:11]} Qa3 {[%emt 0:08:15]} 15. e5 {[%emt 0:03:00]} dxe5 {[%emt 0:02:11]} 16. Nb5 {[%emt 0:03:57]} Qa4 {[%emt 0:00:34]} 17. Nc3 {[%emt 0:00:28]} Qe8 {[%emt 0:02:30]} 18. Nxe5 {[%emt 0:02:56]} Nb4 {[%emt 0:00:19]} 19. Qc4 {[%emt 0:04:36]} Nfxd5 {[%emt 0:15:04]} 20. Nxd5 {[%emt 0:01:20]} Nxd5 {[%emt 0:00:02]} 21. Qxd5 {[%emt 0:05:07]} Rd8 {[%emt 0:00:01]} 22. Qxc5 {[%emt 0:00:16]} Rxd2 {[%emt 0:00:01]} 23. Nf3 {[%emt 0:01:42]} Rd3 {[%emt 0:03:46]} 24. Rac1 {[%emt 0:01:45]} Bf6 {[%emt 0:02:17]} 25. Rfe1 {[%emt 0:02:06]} Qa4 {[%emt 0:01:48]} 26. Qc4 {[%emt 0:01:14]} Qa3 {[%emt 0:02:48]} 27. h3 {[%emt 0:01:08]} Rfd8 {[%emt 0:00:21]} 28. Rc2 {[%emt 0:01:57]} R8d5 {[%emt 0:01:29]} 29. Qe4 {[%emt 0:01:12]} Kg7 {[%emt 0:00:45]} 30. Qe2 {[%emt 0:00:38]} h5 {[%emt 0:01:13]} 31. Rb1 {[%emt 0:00:25]} Qa8 {[%emt 0:03:03]} 32. Re1 {[%emt 0:00:58]} e6 {[%emt 0:00:54]} 33. Qe4 {[%emt 0:00:31]} Ra3 {[%emt 0:00:32]} 34. Rc7 {[%emt 0:00:29]} Bd8 {[%emt 0:01:49]} 35. Rxf7+ {[%emt 0:00:36]} Kxf7 {[%emt 0:00:01]} 36. Qxe6+ {[%emt 0:00:07]} Kg7 {[%emt 0:00:01]} 37. Ne5 {[%emt 0:00:33]} Rxe5 {[%emt 0:01:31]} 38. Qxe5+ {[%emt 0:00:16]} Bf6 {[%emt 0:01:23]} 39. Qc7+ {[%emt 0:00:30]} Kh6 {[%emt 0:00:15]} 40. Re6 {[%emt 0:00:23]} Qf8 {[%emt 0:01:04]} 41. Rxf6 {[%emt 0:03:15]} Qxf6 {[%emt 0:11:43]} 42. Qc1+ {[%emt 0:00:09]} g5 {[%emt 0:00:24]} 43. Qxa3 {[%emt 0:00:06]} Qa1+ {[%emt 0:00:27]} 44. Kh2 {[%emt 0:00:06]} Qe5+ {[%emt 0:00:33]} 45. Qg3 {[%emt 0:04:07]} Qd4 {[%emt 0:00:23]} 46. h4 {[%emt 0:00:27]} 1-0

[Event "Netanya Open 2019"]
[Site "Netanya"]
[Date "2019.06.30"]
[Round "7.9"]
[White "Birnboim, Nathan"]
[Black "Dvoirys, Semen I."]
[Result "0-1"]
[ECO "D85"]
[WhiteElo "2379"]
[BlackElo "2502"]
[Annotator "ChessBase"]
[PlyCount "80"]
[EventDate "2019.06.23"]
[EventType "swiss"]
[EventCountry "ISR"]
[SourceTitle "playchess.com"]
[Source "ChessBase"]
[SourceQuality "1"]
[TimeControl "40/5400+30:1800+30"]

1. d4 {[%emt 0:00:00]} Nf6 {[%emt 0:00:00]} 2. c4 {[%emt 0:00:00]} g6 {[%emt 0:00:00]} 3. Nc3 {[%emt 0:00:00]} d5 {[%emt 0:00:00]} 4. Nf3 {[%emt 0:00:08]} Bg7 {[%emt 0:00:00]} 5. cxd5 {[%emt 0:00:06]} Nxd5 {[%emt 0:00:04]} 6. e4 {[%emt 0:00:06]} Nxc3 {[%emt 0:00:05]} 7. bxc3 {[%emt 0:00:04]} c5 {[%emt 0:00:08]} 8. Rb1 {[%emt 0:00:05]} O-O {[%emt 0:00:08]} 9. Be2 {[%emt 0:00:08]} Qa5 {[%emt 0:00:09]} 10. O-O {[%emt 0:00:24]} Qxa2 {[%emt 0:00:04]} 11. Bg5 {[%emt 0:00:12]} Re8 {[%emt 0:00:07]} 12. h3 {[%emt 0:02:19]} a6 {[%emt 0:13:04]} 13. Bd3 {[%emt 0:06:21]} Qa5 {[%emt 0:10:12]} 14. Qc1 {[%emt 0:14:30]} b5 {[%emt 0:16:00]} 15. Bh6 {[%emt 0:06:51]} Nd7 {[%emt 0:00:37]} 16. Bxg7 {[%emt 0:00:58]} Kxg7 {[%emt 0:03:21]} 17. e5 {[%emt 0:00:38]} Qc7 {[%emt 0:08:32]} 18. Qe3 {[%emt 0:04:01]} Nb6 {[%emt 0:09:42]} 19. Ng5 {[%emt 0:01:05]} Be6 {[%emt 0:00:17]} 20. Nxe6+ {[%emt 0:02:20]} fxe6 {[%emt 0:00:06]} 21. Qg5 {[%emt 0:23:34]} Nd5 {[%emt 0:08:01]} 22. Rbc1 {[%emt 0:03:58]} Rf8 {[%emt 0:03:22]} 23. g3 {[%emt 0:00:48]} c4 {[%emt 0:06:28]} 24. Be4 {[%emt 0:00:42]} Rf7 {[%emt 0:02:48]} 25. h4 {[%emt 0:00:29]} Kh8 {[%emt 0:04:13]} 26. h5 {[%emt 0:02:30]} gxh5 {[%emt 0:00:51]} 27. Qxh5 {[%emt 0:01:11]} Raf8 {[%emt 0:00:45]} 28. Qh6 {[%emt 0:00:27]} Qc8 {[%emt 0:00:31]} 29. Rc2 {[%emt 0:02:39]} Rg8 {[%emt 0:00:43]} 30. Ra1 {[%emt 0:01:12]} b4 {[%emt 0:03:10]} 31. cxb4 {[%emt 0:01:22]} Nxb4 {[%emt 0:00:02]} 32. Rc3 {[%emt 0:04:09]} Nd5 {[%emt 0:00:34]} 33. Rf3 {[%emt 0:01:31]} Rgg7 {[%emt 0:00:27]} 34. Rxf7 {[%emt 0:05:48]} Rxf7 {[%emt 0:00:01]} 35. Ra5 {[%emt 0:07:39]} Nc3 {[%emt 0:03:22]} 36. Qh5 {[%emt 0:00:55]} Qf8 {[%emt 0:02:19]} 37. Bc2 {[%emt 0:00:01]} Nb5 {[%emt 0:00:19]} 38. Rxa6 {[%emt 0:03:18]} Nxd4 {[%emt 0:04:21]} 39. Be4 {[%emt 0:00:16]} Nf3+ {[%emt 0:01:06]} 40. Kg2 {[%emt 0:04:47]} Nd2 {[%emt 0:04:01]} 0-1

[Event "Netanya Open 2019"]
[Site "Netanya"]
[Date "2019.06.30"]
[Round "7.12"]
[White "Huzman, Alexander"]
[Black "Kantsler, Boris"]
[Result "1/2-1/2"]
[ECO "C41"]
[WhiteElo "2588"]
[BlackElo "2420"]
[Annotator "ChessBase"]
[PlyCount "77"]
[EventDate "2019.06.23"]
[EventType "swiss"]
[EventCountry "ISR"]
[SourceTitle "playchess.com"]
[Source "ChessBase"]
[SourceQuality "1"]
[TimeControl "40/5400+30:1800+30"]

1. d4 {[%emt 0:00:00]} d6 {[%emt 0:00:00]} 2. e4 {[%emt 0:00:11]} Nf6 {[%emt 0:00:00]} 3. Nc3 {[%emt 0:00:07]} e5 {[%emt 0:00:09]} 4. Nf3 {[%emt 0:02:05]} exd4 {[%emt 0:00:06]} 5. Nxd4 {[%emt 0:01:03]} Be7 {[%emt 0:00:03]} 6. Nde2 {[%emt 0:04:12]} c6 {[%emt 0:08:46]} 7. g3 {[%emt 0:06:23]} b5 {[%emt 0:01:38]} 8. Bg2 {[%emt 0:04:18]} a6 {[%emt 0:04:19]} 9. Bf4 {[%emt 0:09:39]} O-O {[%emt 0:14:24]} 10. O-O {[%emt 0:05:26]} Ng4 {[%emt 0:07:24]} 11. Nd4 {[%emt 0:17:01]} Ne5 {[%emt 0:02:06]} 12. b3 {[%emt 0:02:03]} Bf6 {[%emt 0:10:48]} 13. Qd2 {[%emt 0:01:38]} Ra7 {[%emt 0:07:53]} 14. Rad1 {[%emt 0:05:02]} Re7 {[%emt 0:04:29]} 15. h3 {[%emt 0:02:38]} Rfe8 {[%emt 0:10:31]} 16. Be3 {[%emt 0:01:51]} b4 {[%emt 0:04:05]} 17. Na4 {[%emt 0:01:49]} a5 {[%emt 0:01:36]} 18. Nf5 {[%emt 0:07:04]} Bxf5 {[%emt 0:02:29]} 19. exf5 {[%emt 0:00:09]} Rb7 {[%emt 0:00:52]} 20. g4 {[%emt 0:10:08]} d5 {[%emt 0:06:24]} 21. Nc5 {[%emt 0:00:25]} Rb5 {[%emt 0:00:06]} 22. Na4 {[%emt 0:04:25]} Ned7 {[%emt 0:02:56]} 23. g5 {[%emt 0:02:34]} Be7 {[%emt 0:01:41]} 24. Rfe1 {[%emt 0:00:56]} Bf8 {[%emt 0:02:11]} 25. h4 {[%emt 0:01:40]} Rb7 {[%emt 0:00:16]} 26. Bd4 {[%emt 0:03:30]} Na6 {[%emt 0:01:13]} 27. Rxe8 {[%emt 0:01:13]} Qxe8 {[%emt 0:00:02]} 28. Re1 {[%emt 0:00:04]} Qd8 {[%emt 0:00:07]} 29. f6 {[%emt 0:00:18]} Nc7 {[%emt 0:04:03]} 30. fxg7 {[%emt 0:01:06]} Bxg7 {[%emt 0:00:04]} 31. Bxg7 {[%emt 0:00:15]} Kxg7 {[%emt 0:00:01]} 32. c4 {[%emt 0:00:06]} Nf8 {[%emt 0:00:33]} 33. Nc5 {[%emt 0:02:53]} Rb8 {[%emt 0:00:35]} 34. Qf4 {[%emt 0:01:36]} Kg8 {[%emt 0:03:01]} 35. cxd5 {[%emt 0:01:42]} cxd5 {[%emt 0:01:06]} 36. Bh3 {[%emt 0:00:54]} Rb6 {[%emt 0:01:01]} 37. Rd1 {[%emt 0:00:11]} Qe7 {[%emt 0:00:18]} 38. Qd4 {[%emt 0:00:43]} Nb5 {[%emt 0:00:13]} 39. Qe3 {[%emt 0:00:35]} 1/2-1/2

[Event "Netanya Open 2019"]
[Site "Netanya"]
[Date "2019.06.30"]
[Round "7.13"]
[White "Sivuk, Vitaly"]
[Black "Rozen, Eytan"]
[Result "1-0"]
[ECO "E49"]
[WhiteElo "2547"]
[BlackElo "2317"]
[Annotator "ChessBase"]
[PlyCount "97"]
[EventDate "2019.06.23"]
[EventType "swiss"]
[EventCountry "ISR"]
[SourceTitle "playchess.com"]
[Source "ChessBase"]
[SourceQuality "1"]
[TimeControl "40/5400+30:1800+30"]

1. d4 {[%emt 0:00:00]} Nf6 {[%emt 0:00:00]} 2. c4 {[%emt 0:00:00]} e6 {[%emt 0:00:00]} 3. Nc3 {[%emt 0:01:46]} Bb4 {[%emt 0:00:01]} 4. f3 {[%emt 0:00:09]} d5 {[%emt 0:00:50]} 5. a3 {[%emt 0:00:10]} Bxc3+ {[%emt 0:00:32]} 6. bxc3 {[%emt 0:00:08]} O-O {[%emt 0:00:47]} 7. e3 {[%emt 0:01:24]} c5 {[%emt 0:00:43]} 8. cxd5 {[%emt 0:00:21]} exd5 {[%emt 0:00:51]} 9. Bd3 {[%emt 0:00:09]} b6 {[%emt 0:01:45]} 10. Ne2 {[%emt 0:00:13]} Bb7 {[%emt 0:01:09]} 11. O-O {[%emt 0:00:18]} Nbd7 {[%emt 0:00:43]} 12. Ng3 {[%emt 0:00:26]} Re8 {[%emt 0:02:30]} 13. Ra2 {[%emt 0:00:27]} cxd4 {[%emt 0:07:09]} 14. cxd4 {[%emt 0:00:16]} Nf8 {[%emt 0:00:15]} 15. Re2 {[%emt 0:03:23]} Rc8 {[%emt 0:05:14]} 16. Bb2 {[%emt 0:00:36]} Ne6 {[%emt 0:00:35]} 17. Ref2 {[%emt 0:03:59]} Qc7 {[%emt 0:07:31]} 18. e4 {[%emt 0:04:43]} Nf4 {[%emt 0:09:59]} 19. e5 {[%emt 0:00:25]} Nxd3 {[%emt 0:02:10]} 20. Qxd3 {[%emt 0:00:12]} Nd7 {[%emt 0:00:10]} 21. Nf5 {[%emt 0:00:28]} Nb8 {[%emt 0:09:44]} 22. Qd2 {[%emt 0:05:49]} Re6 {[%emt 0:06:01]} 23. Qg5 {[%emt 0:01:43]} f6 {[%emt 0:06:00]} 24. Qg4 {[%emt 0:10:50]} fxe5 {[%emt 0:08:14]} 25. dxe5 {[%emt 0:01:22]} Rg6 {[%emt 0:07:12]} 26. Qh4 {[%emt 0:01:18]} Nc6 {[%emt 0:04:55]} 27. Nd6 {[%emt 0:04:26]} Rf8 {[%emt 0:07:49]} 28. f4 {[%emt 0:02:15]} Rh6 {[%emt 0:03:07]} 29. Qg3 {[%emt 0:00:30]} Rg6 {[%emt 0:03:53]} 30. Qd3 {[%emt 0:01:12]} Rxd6 {[%emt 0:01:42]} 31. exd6 {[%emt 0:00:06]} Qxd6 {[%emt 0:00:02]} 32. f5 {[%emt 0:01:15]} d4 {[%emt 0:00:17]} 33. Qc4+ {[%emt 0:01:00]} Kh8 {[%emt 0:00:07]} 34. Qe6 {[%emt 0:00:28]} Rf6 {[%emt 0:03:52]} 35. Qxd6 {[%emt 0:00:19]} Rxd6 {[%emt 0:00:02]} 36. f6 {[%emt 0:00:13]} Kg8 {[%emt 0:00:05]} 37. fxg7 {[%emt 0:02:26]} Rd7 {[%emt 0:00:06]} 38. Rf4 {[%emt 0:00:58]} h6 {[%emt 0:01:21]} 39. Rg4 {[%emt 0:00:42]} Rxg7 {[%emt 0:00:08]} 40. Rxg7+ {[%emt 0:00:07]} Kxg7 {[%emt 0:00:07]} 41. Rf4 {[%emt 0:30:23]} b5 {[%emt 0:31:25]} 42. Bxd4+ {[%emt 0:00:10]} Kg6 {[%emt 0:00:09]} 43. Bc3 {[%emt 0:00:25]} a5 {[%emt 0:00:49]} 44. Kf2 {[%emt 0:00:37]} Ba8 {[%emt 0:00:00]} 45. Kg3 {[%emt 0:00:00]} h5 {[%emt 0:00:00]} 46. Rf6+ {[%emt 0:00:00]} Kh7 {[%emt 0:00:00]} 47. Rf8 {[%emt 0:00:00]} b4 {[%emt 0:00:00]} 48. axb4 {[%emt 0:00:00]} axb4 {[%emt 0:00:00]} 49. Bb2 {[%emt 0:00:00]} 1-0

[Event "Netanya Open 2019"]
[Site "Netanya"]
[Date "2019.06.30"]
[Round "7.14"]
[White "Veinberg, Nimrod"]
[Black "Greenfeld, Alon"]
[Result "1/2-1/2"]
[ECO "E32"]
[WhiteElo "2401"]
[BlackElo "2513"]
[Annotator "ChessBase"]
[PlyCount "88"]
[EventDate "2019.06.23"]
[EventType "swiss"]
[EventCountry "ISR"]
[SourceTitle "playchess.com"]
[Source "ChessBase"]
[SourceQuality "1"]
[TimeControl "40/5400+30:1800+30"]

1. d4 {[%emt 0:00:00]} Nf6 {[%emt 0:10:51]} 2. c4 {[%emt 0:00:04]} e6 {[%emt 0:03:44]} 3. Nc3 {[%emt 0:02:12]} Bb4 {[%emt 0:07:47]} 4. Qc2 {[%emt 0:00:44]} Nc6 {[%emt 0:02:01]} 5. Nf3 {[%emt 0:00:33]} d6 {[%emt 0:01:03]} 6. g3 {[%emt 0:08:16]} O-O {[%emt 0:01:48]} 7. Bg2 {[%emt 0:00:27]} e5 {[%emt 0:00:24]} 8. d5 {[%emt 0:03:18]} Ne7 {[%emt 0:20:47]} 9. O-O {[%emt 0:06:22]} Bg4 {[%emt 0:05:57]} 10. h3 {[%emt 0:10:17]} Bh5 {[%emt 0:03:58]} 11. Na4 {[%emt 0:08:08]} Qd7 {[%emt 0:10:42]} 12. Nh4 {[%emt 0:04:25]} c6 {[%emt 0:07:02]} 13. dxc6 {[%emt 0:04:40]} Nxc6 {[%emt 0:01:07]} 14. e3 {[%emt 0:00:40]} Rac8 {[%emt 0:01:54]} 15. g4 {[%emt 0:19:04]} Na5 {[%emt 0:03:14]} 16. b3 {[%emt 0:01:20]} b5 {[%emt 0:03:38]} 17. Nb2 {[%emt 0:00:46]} Nxg4 {[%emt 0:01:09]} 18. a3 {[%emt 0:02:10]} bxc4 {[%emt 0:04:34]} 19. bxc4 {[%emt 0:02:45]} Bc5 {[%emt 0:01:20]} 20. hxg4 {[%emt 0:00:16]} Qxg4 {[%emt 0:01:35]} 21. Nf5 {[%emt 0:01:28]} d5 {[%emt 0:00:41]} 22. cxd5 {[%emt 0:01:37]} Bg6 {[%emt 0:02:04]} 23. e4 {[%emt 0:00:30]} Bxf5 {[%emt 0:00:31]} 24. exf5 {[%emt 0:01:00]} Bd4 {[%emt 0:00:15]} 25. Qa4 {[%emt 0:01:07]} Rc3 {[%emt 0:01:13]} 26. Be3 {[%emt 0:02:07]} Nb3 {[%emt 0:01:58]} 27. Nd1 {[%emt 0:02:55]} Nd2 {[%emt 0:00:37]} 28. Bxd2 {[%emt 0:04:59]} Rg3 {[%emt 0:00:27]} 29. Ne3 {[%emt 0:01:23]} Rxg2+ {[%emt 0:00:06]} 30. Nxg2 {[%emt 0:00:06]} Bxf2+ {[%emt 0:00:05]} 31. Rxf2 {[%emt 0:01:09]} Qxa4 {[%emt 0:00:02]} 32. Bb4 {[%emt 0:02:43]} Rd8 {[%emt 0:00:04]} 33. Rc1 {[%emt 0:00:28]} f6 {[%emt 0:00:49]} 34. Ne3 {[%emt 0:02:56]} Qb3 {[%emt 0:00:17]} 35. Rc3 {[%emt 0:01:22]} Qb1+ {[%emt 0:00:05]} 36. Kh2 {[%emt 0:00:25]} Qe4 {[%emt 0:01:05]} 37. Rg2 {[%emt 0:00:14]} a5 {[%emt 0:02:28]} 38. Rg4 {[%emt 0:04:12]} Qf3 {[%emt 0:00:11]} 39. Be7 {[%emt 0:00:07]} Rb8 {[%emt 0:00:42]} 40. d6 {[%emt 0:00:56]} Rb2+ {[%emt 0:00:44]} 41. Rg2 {[%emt 0:31:17]} Qf4+ {[%emt 0:03:22]} 42. Kh3 {[%emt 0:00:00]} Qh6+ {[%emt 0:00:53]} 43. Kg3 {[%emt 0:00:00]} Qf4+ {[%emt 0:01:06]} 44. Kh3 {[%emt 0:00:00]} Qh6+ {[%emt 0:27:40]} 1/2-1/2

[Event "Netanya Open 2019"]
[Site "Netanya"]
[Date "2019.06.30"]
[Round "7.15"]
[White "Zanan, Evgeny"]
[Black "Krayz, Alexander"]
[Result "1/2-1/2"]
[ECO "E15"]
[WhiteElo "2505"]
[BlackElo "2377"]
[Annotator "ChessBase"]
[PlyCount "81"]
[EventDate "2019.06.23"]
[EventType "swiss"]
[EventCountry "ISR"]
[SourceTitle "playchess.com"]
[Source "ChessBase"]
[SourceQuality "1"]
[TimeControl "40/5400+30:1800+30"]

1. d4 {[%emt 0:00:00]} Nf6 {[%emt 0:00:00]} 2. c4 {[%emt 0:00:00]} e6 {[%emt 0:00:00]} 3. Nf3 {[%emt 0:00:00]} b6 {[%emt 0:00:00]} 4. g3 {[%emt 0:00:00]} Ba6 {[%emt 0:00:00]} 5. Qc2 {[%emt 0:00:00]} Bb7 {[%emt 0:00:16]} 6. Bg2 {[%emt 0:00:08]} c5 {[%emt 0:00:12]} 7. d5 {[%emt 0:00:04]} exd5 {[%emt 0:00:33]} 8. cxd5 {[%emt 0:00:04]} g6 {[%emt 0:02:34]} 9. e4 {[%emt 0:01:43]} Bg7 {[%emt 0:00:23]} 10. O-O {[%emt 0:00:19]} O-O {[%emt 0:00:21]} 11. Nc3 {[%emt 0:00:11]} d6 {[%emt 0:00:57]} 12. Bf4 {[%emt 0:03:42]} a6 {[%emt 0:01:33]} 13. a4 {[%emt 0:00:37]} Nh5 {[%emt 0:08:16]} 14. Be3 {[%emt 0:04:39]} Nd7 {[%emt 0:05:26]} 15. Nd2 {[%emt 0:11:10]} Re8 {[%emt 0:14:58]} 16. g4 {[%emt 0:22:37]} Nhf6 {[%emt 0:00:25]} 17. h3 {[%emt 0:00:05]} h6 {[%emt 0:04:40]} 18. Rae1 {[%emt 0:02:34]} b5 {[%emt 0:17:23]} 19. axb5 {[%emt 0:00:59]} axb5 {[%emt 0:02:33]} 20. Nxb5 {[%emt 0:01:14]} Qb6 {[%emt 0:00:10]} 21. Na3 {[%emt 0:04:51]} Ba6 {[%emt 0:09:51]} 22. Ndc4 {[%emt 0:00:47]} Qb8 {[%emt 0:01:37]} 23. f4 {[%emt 0:03:46]} Nb6 {[%emt 0:01:45]} 24. b3 {[%emt 0:11:27]} Nfd7 {[%emt 0:06:51]} 25. Rb1 {[%emt 0:07:14]} Nxd5 {[%emt 0:04:32]} 26. exd5 {[%emt 0:04:31]} Rxe3 {[%emt 0:01:56]} 27. Nxe3 {[%emt 0:00:14]} Bxf1 {[%emt 0:00:06]} 28. Bxf1 {[%emt 0:00:40]} Rxa3 {[%emt 0:00:09]} 29. Nc4 {[%emt 0:00:06]} Ra7 {[%emt 0:04:24]} 30. Re1 {[%emt 0:05:30]} Bd4+ {[%emt 0:02:10]} 31. Kh1 {[%emt 0:00:31]} Nf6 {[%emt 0:00:23]} 32. Bg2 {[%emt 0:00:09]} Qb4 {[%emt 0:01:58]} 33. Rf1 {[%emt 0:02:08]} Re7 {[%emt 0:04:05]} 34. Nxd6 {[%emt 0:04:15]} Re1 {[%emt 0:00:11]} 35. Qc4 {[%emt 0:04:54]} Qd2 {[%emt 0:00:33]} 36. Rxe1 {[%emt 0:04:00]} Qxe1+ {[%emt 0:00:07]} 37. Qf1 {[%emt 0:00:02]} Qxf1+ {[%emt 0:02:41]} 38. Bxf1 {[%emt 0:00:05]} Nxd5 {[%emt 0:00:06]} 39. f5 {[%emt 0:02:32]} Ne3 {[%emt 0:01:19]} 40. Bd3 {[%emt 0:00:57]} Kg7 {[%emt 0:02:09]} 41. fxg6 {[%emt 0:30:26]} 1/2-1/2

[Event "Netanya Open 2019"]
[Site "Netanya"]
[Date "2019.06.30"]
[Round "7.16"]
[White "Goikhman, Valentin"]
[Black "Khmelniker, Ilya"]
[Result "0-1"]
[ECO "C45"]
[WhiteElo "2320"]
[BlackElo "2483"]
[Annotator "ChessBase"]
[PlyCount "70"]
[EventDate "2019.06.23"]
[EventType "swiss"]
[EventCountry "ISR"]
[SourceTitle "playchess.com"]
[Source "ChessBase"]
[SourceQuality "1"]
[TimeControl "40/5400+30:1800+30"]

1. e4 {[%emt 0:00:00]} e5 {[%emt 0:04:06]} 2. Nf3 {[%emt 0:00:08]} Nc6 {[%emt 0:00:12]} 3. d4 {[%emt 0:00:24]} exd4 {[%emt 0:00:06]} 4. Nxd4 {[%emt 0:00:03]} Bb4+ {[%emt 0:00:34]} 5. c3 {[%emt 0:00:11]} Bc5 {[%emt 0:00:05]} 6. Be3 {[%emt 0:00:11]} Bb6 {[%emt 0:00:06]} 7. Nf5 {[%emt 0:05:59]} Bxe3 {[%emt 0:14:50]} 8. Nxe3 {[%emt 0:00:06]} Nge7 {[%emt 0:00:05]} 9. g3 {[%emt 0:09:29]} O-O {[%emt 0:04:28]} 10. Bg2 {[%emt 0:01:19]} d6 {[%emt 0:14:55]} 11. O-O {[%emt 0:04:59]} Be6 {[%emt 0:00:16]} 12. f4 {[%emt 0:04:16]} f6 {[%emt 0:03:51]} 13. c4 {[%emt 0:13:40]} a6 {[%emt 0:10:23]} 14. Nc3 {[%emt 0:02:37]} Qb8 {[%emt 0:00:30]} 15. Kh1 {[%emt 0:04:13]} b5 {[%emt 0:11:11]} 16. Ncd5 {[%emt 0:03:45]} bxc4 {[%emt 0:02:48]} 17. Rc1 {[%emt 0:02:24]} Bf7 {[%emt 0:05:53]} 18. Rxc4 {[%emt 0:06:09]} Re8 {[%emt 0:12:20]} 19. Qd2 {[%emt 0:15:30]} Nxd5 {[%emt 0:04:05]} 20. Nxd5 {[%emt 0:04:55]} Ne7 {[%emt 0:00:01]} 21. e5 {[%emt 0:12:54]} dxe5 {[%emt 0:07:32]} 22. Rxc7 {[%emt 0:05:40]} Bxd5 {[%emt 0:00:05]} 23. Bxd5+ {[%emt 0:00:11]} Kh8 {[%emt 0:00:04]} 24. Rb7 {[%emt 0:02:16]} Qd8 {[%emt 0:00:17]} 25. Rd1 {[%emt 0:00:15]} Qd6 {[%emt 0:02:59]} 26. fxe5 {[%emt 0:00:53]} Qxe5 {[%emt 0:00:23]} 27. Bg2 {[%emt 0:00:25]} Nf5 {[%emt 0:00:04]} 28. Rd7 {[%emt 0:00:23]} Rab8 {[%emt 0:00:45]} 29. Rd5 {[%emt 0:00:29]} Qe6 {[%emt 0:00:05]} 30. Rf1 {[%emt 0:00:39]} Ne3 {[%emt 0:00:59]} 31. Re1 {[%emt 0:00:06]} Qb6 {[%emt 0:00:20]} 32. Rd6 {[%emt 0:00:49]} Qc5 {[%emt 0:00:59]} 33. Bc6 {[%emt 0:00:38]} Nc4 {[%emt 0:00:28]} 34. Rxe8+ {[%emt 0:00:32]} Rxe8 {[%emt 0:00:01]} 35. Rd8 {[%emt 0:00:30]} Qxc6+ {[%emt 0:01:44]} 0-1

[Event "Netanya Open 2019"]
[Site "Netanya"]
[Date "2019.06.30"]
[Round "7.17"]
[White "Grinberg, Eyal"]
[Black "Aharon, Ofir"]
[Result "1-0"]
[ECO "D78"]
[WhiteElo "2474"]
[BlackElo "2302"]
[Annotator "ChessBase"]
[PlyCount "89"]
[EventDate "2019.06.23"]
[EventType "swiss"]
[EventCountry "ISR"]
[SourceTitle "playchess.com"]
[Source "ChessBase"]
[SourceQuality "1"]
[TimeControl "40/5400+30:1800+30"]

1. d4 {[%emt 0:00:00]} Nf6 {[%emt 0:00:00]} 2. c4 {[%emt 0:00:00]} g6 {[%emt 0:00:50]} 3. g3 {[%emt 0:00:01]} c6 {[%emt 0:00:22]} 4. Bg2 {[%emt 0:01:15]} d5 {[%emt 0:00:02]} 5. Nf3 {[%emt 0:01:23]} Bg7 {[%emt 0:00:54]} 6. O-O {[%emt 0:00:08]} O-O {[%emt 0:00:06]} 7. Qa4 {[%emt 0:06:20]} Nfd7 {[%emt 0:02:28]} 8. cxd5 {[%emt 0:00:09]} Nb6 {[%emt 0:00:19]} 9. Qb3 {[%emt 0:12:21]} cxd5 {[%emt 0:00:48]} 10. Nc3 {[%emt 0:02:11]} Nc6 {[%emt 0:00:23]} 11. Rd1 {[%emt 0:07:30]} Bf5 {[%emt 0:12:19]} 12. Bf4 {[%emt 0:07:45]} h6 {[%emt 0:07:14]} 13. h4 {[%emt 0:07:02]} Rc8 {[%emt 0:07:37]} 14. Ne5 {[%emt 0:04:59]} e6 {[%emt 0:02:22]} 15. e4 {[%emt 0:10:33]} dxe4 {[%emt 0:00:30]} 16. Nxe4 {[%emt 0:00:30]} Nd5 {[%emt 0:15:10]} 17. Qxb7 {[%emt 0:06:47]} Na5 {[%emt 0:00:30]} 18. Qxa7 {[%emt 0:00:30]} Nxf4 {[%emt 0:00:30]} 19. gxf4 {[%emt 0:00:30]} Ra8 {[%emt 0:00:30]} 20. Qd7 {[%emt 0:06:59]} Qxh4 {[%emt 0:05:01]} 21. Ng3 {[%emt 0:01:55]} Rab8 {[%emt 0:05:37]} 22. Qc7 {[%emt 0:07:24]} Qxf4 {[%emt 0:04:10]} 23. Qxa5 {[%emt 0:00:58]} Rxb2 {[%emt 0:00:09]} 24. Qe1 {[%emt 0:02:45]} Rc8 {[%emt 0:01:39]} 25. Nc6 {[%emt 0:02:28]} Rxc6 {[%emt 0:12:35]} 26. Bxc6 {[%emt 0:00:06]} Bg4 {[%emt 0:03:36]} 27. Rd3 {[%emt 0:05:07]} Bxd4 {[%emt 0:00:13]} 28. Rxd4 {[%emt 0:00:24]} Qxd4 {[%emt 0:00:03]} 29. Qe3 {[%emt 0:00:39]} Qc4 {[%emt 0:10:00]} 30. Rc1 {[%emt 0:01:59]} Qxa2 {[%emt 0:01:26]} 31. Be4 {[%emt 0:01:39]} Rb8 {[%emt 0:01:16]} 32. Qf4 {[%emt 0:00:53]} Qb2 {[%emt 0:00:13]} 33. Rc2 {[%emt 0:01:42]} Qb1+ {[%emt 0:06:57]} 34. Kh2 {[%emt 0:00:12]} Bf5 {[%emt 0:00:15]} 35. Nxf5 {[%emt 0:00:39]} exf5 {[%emt 0:00:53]} 36. Rc8+ {[%emt 0:00:08]} Rxc8 {[%emt 0:00:22]} 37. Bxb1 {[%emt 0:00:06]} Kg7 {[%emt 0:00:37]} 38. Qe5+ {[%emt 0:00:15]} Kh7 {[%emt 0:00:15]} 39. Ba2 {[%emt 0:00:36]} Rc2 {[%emt 0:00:22]} 40. Bxf7 {[%emt 0:00:06]} Rxf2+ {[%emt 0:00:31]} 41. Kg1 {[%emt 0:30:19]} Rd2 {[%emt 0:02:03]} 42. Qf6 {[%emt 0:00:00]} Rd1+ {[%emt 0:00:17]} 43. Kf2 {[%emt 0:00:00]} Rd2+ {[%emt 0:00:11]} 44. Ke1 {[%emt 0:00:00]} Rg2 {[%emt 0:00:23]} 45. Bd5 {[%emt 0:00:00]} 1-0